Cogmind - Beta 13 @@@ ROGUE MODE // 2024.06.13 @ 20:09:49 Player: Kat Result: Self-destructed Performance ------------- Evolutions (2) 1000 Regions Visited (5) 1000 Robots Destroyed (52) 260 Value Destroyed (1118) 1118 Prototype IDs (24) 480 Alien Tech Used (0) 0 Bonus (253) 253 TOTAL SCORE: 4111 Bonus ------- Aligned with FarCom 300 Friendly Fire -47 Cogmind --------- Core Integrity 428/550 Matter 300/300 Energy 140/140 System Corruption 1% Temperature Cool (0) Movement Walking (45) Location -8/Materials Parts ------- > --- POWER (1) -------- Light Deuterium Engine > --- PROPULSION (2) --- Potential Leg Potential Leg > --- UTILITY (6) ------ Heat Sink Medium Storage Unit Improved Sensor Array Improved Signal Interpreter Improved Targeting Computer Long-range Tractor Beam > --- WEAPON (2) ------- High-powered Field Laser High-powered Field Laser > --- INVENTORY (10) --- Army-in-a-Box (30/30) AWS/Gauss Improved Datajack Plasma Cutter Peak State ------------ > --- POWER ------------ Light Deuterium Engine > --- PROPULSION ------- Potential Leg Potential Leg > --- UTILITY ---------- Heat Sink Medium Storage Unit Improved Sensor Array Improved Signal Interpreter Improved Targeting Computer Long-range Tractor Beam > --- WEAPON ----------- High-powered Field Laser High-powered Field Laser > --- INVENTORY -------- Army-in-a-Box AWS/Gauss Improved Datajack Plasma Cutter [Rating: 53] Favorites ----------- Power Ion Engine Engine Ion Engine Power Core Light Nuclear Core Propulsion Aluminum Leg Leg Aluminum Leg Utility Medium Storage Unit Device Heat Sink Storage Medium Storage Unit Processor Improved Signal Interpreter Weapon Beam Cannon Energy Gun Medium Laser Energy Cannon Beam Cannon Ballistic Gun AWS/Gauss Launcher Grenade Launcher Build | -11 -10 -10 -10 -9 -8 ------- Run | Yrd Mat Min Exi Min Mat Slots Evolved 4 | . . . . . 4 Power . | . . . . . . Propulsion . | . . . . . . Utility 4 | . . . . . 4 Weapon . | . . . . . . Parts Attached 37 | 7 11 2 4 . 13 Power 6 | 1 2 . 1 . 2 Engine 5 | 1 2 . 1 . 1 Core 1 | . . . . . 1 Reactor . | . . . . . . Propulsion 8 | 2 3 1 2 . . Treads . | . . . . . . Leg 8 | 2 3 1 2 . . Wheel . | . . . . . . Hover . | . . . . . . Flight . | . . . . . . Utility 11 | 2 2 . . . 7 Device 7 | 1 1 . . . 5 Storage 2 | 1 1 . . . . Processor 2 | . . . . . 2 Hackware . | . . . . . . Protection . | . . . . . . Artifact . | . . . . . . Weapon 12 | 2 4 1 1 . 4 Energy Gun 5 | 2 . . . . 3 Energy Cannon 4 | . 4 . . . . Ballistic Gun 2 | . . . 1 . 1 Ballistic Cannon . | . . . . . . Launcher 1 | . . 1 . . . Special Weapon . | . . . . . . Impact Weapon . | . . . . . . Slashing Weapon . | . . . . . . Piercing Weapon . | . . . . . . Special Melee Weapon . | . . . . . . Unidentified Prototypes 1 | . . . . . 1 Parts Lost 1 | . . 1 . . . Power 1 | . . 1 . . . Propulsion . | . . . . . . Utility . | . . . . . . Weapon . | . . . . . . Highest Loss Streak 1 | . . 1 . . . To Critical Strikes . | . . . . . . Average Slot Usage (%) 90 | . 99 96 83 85 78 Engine 9 | . 14 10 3 14 4 Core 1 | . . . . . 4 Leg 25 | . 28 28 26 28 18 Device 17 | . 14 14 14 14 27 Storage 12 | . 14 14 14 14 9 Energy Gun 6 | . 11 . . . 7 Energy Cannon 11 | . 16 24 10 . . Ballistic Gun 2 | . . . 3 14 5 Launcher 2 | . . 3 10 . . Naked Turns . | . . . . . . Heaviest Build 28 | 15 24 22 26 26 28 Greatest Support 60 | 20 20 20 60 60 60 Greatest Overweight (x) 5 | 2 1 1 5 . . Average Overweight (x) . | . . . . . . Largest Inventory Capacity 10 | 8 10 10 10 10 10 Average Capacity 9 | 7 9 10 10 10 10 Most Carried 10 | 3 10 10 10 10 10 Average Carried 8 | 2 7 10 9 10 9 Final Capacity 10 | 8 10 10 10 10 10 Final Carried 10 | 3 10 10 10 10 10 Class Distribution -------------------- 74% | Mutant 22% | Skirmisher Dominant Class ---------------- Mutant | -10/Materials Mutant | -10/Mines Mutant | -10/Exiles Mutant | -9/Mines Skirmisher | -8/Materials Resources | -11 -10 -10 -10 -9 -8 ----------- Run | Yrd Mat Min Exi Min Mat Matter Collected 608 | 270 110 60 . 22 146 Remotely 146 | . . . . . 146 Salvage Created 1842 | 131 538 341 207 73 552 Parts 116 | 6 43 24 11 3 29 Haulers Intercepted 4 | . 2 . . . 2 Recyclers Shooed 5 | . . 2 . 1 2 Parts Field Recycled . | . . . . . . Retrieved Matter . | . . . . . . Parts Self-Destructed . | . . . . . . Prevented . | . . . . . . Kills | -11 -10 -10 -10 -9 -8 ------- Run | Yrd Mat Min Exi Min Mat Combat Hostiles Destroyed 32 | . 10 10 5 1 6 Guns 12 | . . . 5 1 6 Cannons 13 | . 10 3 . . . AOE 7 | . . 7 . . . Classes Destroyed 10 | 2 5 . 1 2 . Worker 1 | . . . . 1 . Tunneler 3 | 2 . 1 . . . Hauler 4 | . 2 . . . 2 Recycler 6 | 1 2 2 . . 1 Operator 1 | . 1 . . . . Watcher 4 | . 2 . . . 2 Swarmer 12 | . 6 6 . . . Grunt 17 | . 4 4 4 1 4 Hunter 3 | . . . 1 . 2 Zionite 1 | . . . . 1 . Best Kill Streak 5 | 3 3 5 5 1 3 Combat Bots Only 5 | . 3 5 5 1 3 Max Kills in Single Turn 3 | 1 1 3 1 1 1 Gunslinging . | . . . . . . Exploded 3 | . . 3 . . . Melee . | . . . . . . Uniques/NPCs Destroyed . | . . . . . . Combat | -11 -10 -10 -10 -9 -8 -------- Run | Yrd Mat Min Exi Min Mat Hostile Shots Fired 165 | . 42 46 19 5 53 Missed 58 | . 17 11 15 1 14 Damage Taken 1185 | . 241 350 71 42 481 Core 218 | . 24 72 . . 122 Absorbed by Shields . | . . . . . . Core Remaining (%) 80 | 100 . . . 61 . Volleys Fired 72 | 9 27 21 . . 15 Largest 2 | 2 2 2 . . 2 Hottest 140 | 100 136 120 . . 140 Shots Fired 195 | 14 54 42 16 11 58 Gun 99 | 14 . . 16 11 58 Cannon 90 | . 54 36 . . . Launcher 6 | . . 6 . . . Special . | . . . . . . Kinetic 55 | . . . 16 11 28 Thermal 134 | 14 54 36 . . 30 Explosive 6 | . . 6 . . . Electromagnetic . | . . . . . . Robot Hit Streak 12 | 5 9 9 8 2 12 Robot Miss Streak 9 | 2 2 9 4 2 9 Penetration Max . | . . . . . . Secondary Targets . | . . . . . . Autonomous 56 | . . . 16 11 29 Shots Hit Robots 118 | 9 33 20 10 6 40 Core Hits 66 | 4 17 16 6 3 20 Critical Kills . | . . . . . . Critical Parts Destroyed 2 | . . . . 1 1 Critical Strikes 3 | . . . . 1 2 Burn 1 | . . . . . 1 Destroy 2 | . . . . 1 1 Melee Attacks . | . . . . . . Impact . | . . . . . . Slashing . | . . . . . . Piercing . | . . . . . . Sneak Attacks . | . . . . . . Combat Hostiles . | . . . . . . Follow-up Attacks . | . . . . . . Damage Inflicted 3162 | 113 655 757 350 213 1074 Guns 1593 | 113 . . 350 166 964 Cannons 1018 | . 655 363 . . . Explosions 394 | . . 394 . . . Melee . | . . . . . . Ramming 157 | . . . . 47 110 Kinetic 1123 | . . . 350 166 607 Thermal 1488 | 113 655 363 . . 357 Explosive 394 | . . 394 . . . Electromagnetic . | . . . . . . Impact . | . . . . . . Slashing . | . . . . . . Piercing . | . . . . . . Highest Corruption 1 | . . . . . 1 Average Corruption 1 | . . . . . 1 Corruption Purged . | . . . . . . Corruption Blocked . | . . . . . . Overload Shots . | . . . . . . Overflow Damage . | . . . . . . Projectiles . | . . . . . . Explosions . | . . . . . . Melee . | . . . . . . Knockbacks 1 | . . . . 1 . Impact 1 | . . . . 1 . Kinetic . | . . . . . . Secondary . | . . . . . . Self-Inflicted Damage 7 | . . 7 . . . Shots 1 | . . 1 . . . Rammed . | . . . . . . Targets Rammed 15 | . . . . 4 11 Kicked 15 | . . . . 4 11 Crushed . | . . . . . . Highest Temperature 300 | 156 300 186 . . 225 Average Temperature 79 | 68 92 63 . . 76 Received Heat Transfer 324 | . 99 84 . 24 117 Effects 3 | . . . . . 3 Interference 3 | . . . . . 3 Siege Activations . | . . . . . . Robots Corrupted . | . . . . . . Combat Hostiles . | . . . . . . Parts Fried . | . . . . . . Impact Corruptions . | . . . . . . Robots Melted . | . . . . . . Combat Hostiles . | . . . . . . Parts Melted 6 | . 4 2 . . . Heat Transferred 2997 | 333 1221 777 . . 666 Parts Sabotaged . | . . . . . . Parts Stolen . | . . . . . . Parts Stripped . | . . . . . . Power Chain Reactions . | . . . . . . Alert | -11 -10 -10 -10 -9 -8 ------- Run | Yrd Mat Min Exi Min Mat Peak Influence 332 | 15 248 332 . 36 244 Initial 54 | . 9 54 . . 13 Average 85 | 4 71 149 . 4 94 Maximum Alert Level 1 | . 1 1 . . 1 Low Security (%) 89 | 100 90 76 . 100 93 Level 1 10 | . 9 23 . . 6 Level 2 . | . . . . . . Level 3 . | . . . . . . Level 4 . | . . . . . . Level 5 . | . . . . . . High Security . | . . . . . . Max Security . | . . . . . . Squads Dispatched 4 | . 3 . . . 1 Investigation 2 | . 1 . . . 1 Extermination . | . . . . . . Reinforcement 2 | . 2 . . . . Assault . | . . . . . . Garrison . | . . . . . . Intercept . | . . . . . . Searches Triggered . | . . . . . . Construction Impeded . | . . . . . . Haulers Reinforced . | . . . . . . Active Scanning Responses . | . . . . . . Cargo Convoy Interrupts . | . . . . . . Stealth | -11 -10 -10 -10 -9 -8 --------- Run | Yrd Mat Min Exi Min Mat Distress Signals 2 | . . . . . 2 Communications Jammed . | . . . . . . Distress Signals . | . . . . . . Times Spotted 66 | . 17 9 7 8 25 Peak Tracking Total 15 | . 3 5 7 12 15 Tactical Retreats 4 | . . . . . 4 Traps | -11 -10 -10 -10 -9 -8 ------- Run | Yrd Mat Min Exi Min Mat Traps Triggered 1 | . . . . . 1 Indirectly . | . . . . . . Trap Hack Attempts . | . . . . . . Triggered . | . . . . . . Disarmed . | . . . . . . Reprogrammed . | . . . . . . Reused . | . . . . . . Traps Extracted . | . . . . . . Installed . | . . . . . . Triggered . | . . . . . . Machines | -11 -10 -10 -10 -9 -8 ---------- Run | Yrd Mat Min Exi Min Mat Machines Disabled 3 | . . . 2 . 1 Max in Single Turn 1 | . . . 1 . 1 Machines Repaired . | . . . . . . Machines Dismantled . | . . . . . . Machines Sabotaged . | . . . . . . Overloaded Fab Kills . | . . . . . . Hacking | -11 -10 -10 -10 -9 -8 --------- Run | Yrd Mat Min Exi Min Mat Machines Accessed 6 | . 1 . 1 . 4 Terminals 5 | . 1 . . . 4 Fabricators . | . . . . . . Repair Stations . | . . . . . . Recycling Units . | . . . . . . Scanalyzers . | . . . . . . Garrison Access . | . . . . . . Total Hacks 17 | . 4 . 1 . 12 Successful 9 | . 1 . 1 . 7 Failed 8 | . 3 . . . 5 Catastrophic . | . . . . . . Database Lockouts . | . . . . . . Manual 13 | . . . 1 . 12 Terminals 16 | . 4 . . . 12 Fabricators . | . . . . . . Repair Stations . | . . . . . . Recycling Units . | . . . . . . Scanalyzers . | . . . . . . Garrison Access . | . . . . . . Terminal Hacks 3 | . 1 . 1 . 1 Emergency Access Points 1 | . 1 . . . . Terminal Index 1 | . . . . . 1 Derelict Proto ID Bank 1 | . . . 1 . . Fabricator Hacks . | . . . . . . Repair Station Hacks . | . . . . . . Recycling Unit Hacks . | . . . . . . Scanalyzer . | . . . . . . Garrison Access Hacks . | . . . . . . Unauthorized Hacks 6 | . . . . . 6 Terminals 6 | . . . . . 6 Assimilate 1 | . . . . . 1 Botnet 4 | . . . . . 4 Operators 1 | . . . . . 1 Fabricators . | . . . . . . Repair Stations . | . . . . . . Recycling Units . | . . . . . . Scanalyzers . | . . . . . . Garrison Access . | . . . . . . Data Cores Recovered . | . . . . . . Used . | . . . . . . Hacking Detections 3 | . 1 . . . 2 Full Trace Events 3 | . 1 . . . 2 Feedback Events . | . . . . . . Feedback Blocked . | . . . . . . Robot Schematics Acquired . | . . . . . . Robots Built . | . . . . . . Authchips . | . . . . . . Time . | . . . . . . Total Robot Build Rating . | . . . . . . Part Schematics Acquired . | . . . . . . Parts Built . | . . . . . . Authchips . | . . . . . . Time . | . . . . . . Total Part Build Rating . | . . . . . . Parts Repaired . | . . . . . . Time . | . . . . . . Parts Recycled . | . . . . . . Recycled Matter . | . . . . . . Retrieved Matter . | . . . . . . Retrieved Components . | . . . . . . Parts Scanalyzed . | . . . . . . Part Schematics Acquired . | . . . . . . Parts Damaged . | . . . . . . Bothacking | -11 -10 -10 -10 -9 -8 ------------ Run | Yrd Mat Min Exi Min Mat Used RIF Installer . | . . . . . . Robots Hacked . | . . . . . . Non-combat . | . . . . . . Combat . | . . . . . . Robot Hacks Applied . | . . . . . . Relay Couplers Released . | . . . . . . Fabnet Peak Effective % . | . . . . . . Robots Rewired . | . . . . . . Allies Hacked . | . . . . . . Hacks Repelled . | . . . . . . Allies | -11 -10 -10 -10 -9 -8 -------- Run | Yrd Mat Min Exi Min Mat Total Allies 1 | . . . . . 1 Largest Group 1 | . . . . . 1 Highest-Rated Group 10 | . . . . . 10 Highest-Rated Ally 10 | . . . . . 10 Total Orders . | . . . . . . Ally Attacks . | . . . . . . Total Damage . | . . . . . . Kills . | . . . . . . Allies Corrupted . | . . . . . . Allies Melted . | . . . . . . Intel | -11 -10 -10 -10 -9 -8 ------- Run | Yrd Mat Min Exi Min Mat Robot Analysis Total . | . . . . . . Derelict Logs Recovered . | . . . . . . Drone Launches . | . . . . . . Drone Recoveries . | . . . . . . Exploration | -11 -10 -10 -10 -9 -8 ------------- Run | Yrd Mat Min Exi Min Mat Turns Passed 2463 | 113 880 382 348 102 638 Spaces Moved 1153 | 63 224 189 300 105 272 Core 23 | 17 . . 6 . . Treads . | . . . . . . Legs 1130 | 46 224 189 294 105 272 Wheels . | . . . . . . Hover . | . . . . . . Flight . | . . . . . . Fastest Speed 45 | 50 120 120 45 90 45 Average Speed 119 | 112 170 165 100 90 78 Slowest Speed 300 | 150 190 190 300 90 90 Overloaded Moves 108 | . . . 41 . 67 Propulsion Burnouts . | . . . . . . Robots Hopped . | . . . . . . Cave-ins Triggered . | . . . . . . Exploration Rate (%) 35 | 4 34 53 60 23 39 Regions Visited 5 Branch Regions 3 Pre-discovered Areas . | . . . . . . Known Exits Taken . | . . . . . . Unknown Exits Taken 5 | 1 1 1 1 1 . Scrap Searched . | . . . . . . Spaces Dug . | . . . . . . Terrain Destroyed 78 | . . 49 . 11 18 Melee . | . . . . . . Projectile 29 | . . . . 11 18 AOE 49 | . . 49 . . . Terrain Rammed . | . . . . . . Walls Destroyed . | . . . . . . Machines Disabled . | . . . . . . Actions | -11 -10 -10 -10 -9 -8 --------- Run | Yrd Mat Min Exi Min Mat Total 2105 | 89 671 215 351 112 667 Wait 783 | 6 392 3 37 4 341 Move 1148 | 62 223 188 299 104 272 Hop . | . . . . . . Pick Up 18 | 5 7 . 1 . 5 Fast Attach 17 | 5 4 . 3 . 5 Attach 8 | 2 . . 1 . 5 Detach 4 | . 2 . 1 . 1 Swap 12 | . 7 2 . . 3 Drop 28 | . 9 1 9 . 9 Fire 72 | 9 27 21 . . 15 Melee . | . . . . . . Ram . | . . . . . . Kick 15 | . . . . 4 11 Crush . | . . . . . . Escape Stasis . | . . . . . . Rewire . | . . . . . . Trap . | . . . . . . Miscellaneous . | . . . . . . Route ------- -11/Scrapyard -10/Materials -10/Mines -10/Exiles (discovered 2 exits: [*Min x2]) -9/Mines (discovered 2 exits: *Mat x2) -8/Materials History --------- Turn | Location | Event 8 | -11/Scrapyard | Discovered new exit (range 15) 114 | -11/Scrapyard | Entered Materials 314 | -10/Materials | Build established: Mutant 934 | -10/Materials | Discovered new exit (range 11) 994 | -10/Materials | Entered Mines 1371 | -10/Mines | Deemed a non-threat by the Exiles lab entrance 1371 | -10/Mines | Discovered new exit (range 5) 1376 | -10/Mines | Entered Exiles 1392 | -10/Exiles | Discovered new exit (range 15) 1406 | -10/Exiles | Met 8R-AWN 1427 | -10/Exiles | Met EX-HEX 1459 | -10/Exiles | Met EX-BIN 1486 | -10/Exiles | Aligned with FarCom system 1487 | -10/Exiles | Given EX-Vault access code 1516 | -10/Exiles | Opened EX-Vault 1539 | -10/Exiles | Found Potential Leg 1542 | -10/Exiles | Found Potential Leg 1562 | -10/Exiles | Warned to stay clear of 0b10 Research branches 1571 | -10/Exiles | Exiles lab attacked by MAIN.C 1648 | -10/Exiles | Found AWS/Gauss 1655 | -10/Exiles | Found Army-in-a-Box 1713 | -10/Exiles | Discovered new exit (range 14) 1724 | -10/Exiles | Stole three prototypes: AWS/Gauss, Potential Leg, Army-in-a-Box 1724 | -10/Exiles | Entered Mines 1765 | -9/Mines | Discovered new exit (range 4) 1801 | -9/Mines | Discovered new exit (range 8) 1803 | -9/Mines | Assembled infested the area 1826 | -9/Mines | Entered Materials 1826 | -8/Materials | Evolved 4 slots: Utility x4 2116 | -8/Materials | Build established: Skirmisher 2464 | -8/Materials | Self-destructed Last Messages --------------- Trojan loaded successfully. Testing... System interface override in place. >>Trojan(Botnet) Trojan loaded successfully. Testing... Terminal linked with 2 systems. Awaiting botnet instructions. 02436_ O-16 Technician: "IFF HANDSHAKE FAILED. SECURING TERMINAL." 02440_ R-06 Scavenger collects Tractor Beam. 02445_ Technician 3a reports 0b10 security level has risen to 1. 02445_ Kicked A-02 Transporter. 02445_ A-02 Transporter destroyed. 02446_ Acquired 21 matter. 02447_ Dropped Lrn. Tractor Beam. 02448_ Acquired 10 matter. 02455_ Kicked Y-45 Defender. 02458_ Kicked Y-45 Defender out of the way. 02459_ Kicked Y-45 Defender. 02460_ Kicked Y-45 Defender out of the way. Map ----- +----------------------------------------------------+ | ## ## """ # | ]#??? | | ##![ ## # #??? | | ##[[ ## ##+########??? | | ## ## #?????????? | | ###+### #?????????? | | +?????????? | | #####/## #?????????? | | ^ ## #!#####+#???? | | ## """ +!g%!!! #???? | | ############## """ ####g! #???? | | #????????????# """ #??#Y #???? | | #????????????# #??# #???? | | #????????????# "Y" #??# #???? | | #???????????Y# """ #??#s #???? | | #????????????#######??# #???? | | +?????????????????????# #???? | | ??????????????????????# #???? | | ??????????????????????# #???? | | ??????????????????????#s##+###?? | | ??????????????????????#s## #? | | ?????????????????????##%## #? | | ?????????????????????#Y% # ] #? | | ?????????????????????# !# #? | | ?????????????????????# #! #? | | ????????????????????## ######? | | ????????????????????# @ #???? | | ????????????????????#!!!!==#???? | | ????????????????????#!!!!==#???? | | ????????????????????########???? | | ???????????????????????????????? | | ???????????????????????????????? | | ???????????????????????????????? | | ???????????????????????????????? | | ???????????????????????????????? | | | | | | | | | | | | | | | | | | | | | | | | | | | | | | | | | +----------------------------------------------------+ Best States ------------- Heat Dissipation 41 Energy Generation 14 Energy Capacity 250 Matter Stores 300 Matter Capacity 300 Sight Range 16 Robot Scan Range 15 Terrain Scan Density 10 Evasion (%) 66 Targeting Accuracy 6 Item Schematics ----------------- None Robot Schematics ------------------ None Fabricated ------------ Nothing Alien Tech Used ----------------- None Achievements -------------- None Challenges ------------ None Game ------ Seed InertialAerolevSystem Manual? 0 Play Time 00:22:19 Cumulative 35.1 hours Start 2024.06.13 @ 16:00:55 End 2024.06.13 @ 20:09:49 Sessions 3 Manual Loads 0 Difficulty Rogue Special Mode None Game No. 79 Rogue 79 Adventurer 0 Explorer 0 Win Type - Total 0 Types 0/0/0/0/0/0/0/0/0 Lore% 22 Gallery% 28 Achievement% 23 Wizard Run 0 Options --------- Layout 0 ASCII 0 Keyboard 0 Movement Numpad Keybinds 0 Fullscreen 2 Font 18/Terminus Map View 76x50 Zoom Use 0% Tactical HUD 1 Map Filters NONE Filters NONE Steam 1 RUN: 2f0d6fea-358e-4389-bc2d-28563f34429e